Workbook

Sheet общий
A2: РАЗРАБОТАНО И ПРИНЯТО | K2: УТВЕРЖДЕНО
A3: Решением педагогического совета | K3: Приказом по МОУ «Средняя школа №55»
A4: МОУ «Средняя школа №55» | I4: №169 | K4: «29» августа 2025г.
A5: Протокол №8 от29.08.2025 | K5: Директор школы Ермоленко Р.Е.
A6: План Внеурочной деятельности 2025/2026 учебный год
A8: Направления внеурочной деятельности | B8: Учебные предметы, курсы | C8: Классы/ количество часов в неделю
C9: 5-дневная неделя | K9: ИТОГО:
C10: I | E10: II | G10: III | I10: IV | K10: всего за неделю | L10: 33/34 недели
C11: Неделя | D11: Год | E11: Неделя | F11: Год | G11: Неделя | H11: Год | I11: Неделя | J11: Год
A12: Духовно-нравственное направление | B12: "Край, в котором я живу" | C12: 1 | D12: =C12*33 -> 33 | E12: 1 | F12: =E12*34 -> 34 | G12: 1 | H12: =G12*34 -> 34 | I12: 1 | J12: =PRODUCT(I12*34) -> 34 | K12: =C12+E12+G12+I12 -> 4 | L12: =D12+F12+H12+J12 -> 135
B13: "Разговоры о важном" | C13: 1 | D13: =C13*33 -> 33 | E13: 1 | F13: =E13*34 -> 34 | G13: 1 | H13: =G13*34 -> 34 | I13: 1 | J13: =PRODUCT(I13*34) -> 34 | K13: =C13+E13+G13+I13 -> 4 | L13: =D13+F13+H13+J13 -> 135
A14: Спортивно- оздоровительное направление | B14: "Спортивный час" | C14: 1 | D14: =C14*33 -> 33 | E14: 1 | F14: =E14*34 -> 34 | G14: 1 | H14: =G14*34 -> 34 | I14: 1 | J14: =PRODUCT(I14*34) -> 34 | K14: =C14+E14+G14+I14 -> 4 | L14: =D14+F14+H14+J14 -> 135
B15: "Разговор о правильном питании" | C15: 1 | D15: 33 | E15: 1 | F15: 34 | G15: 1 | H15: 34 | I15: 1 | J15: 34 | K15: 4 | L15: 135
A16: Общеинтеллектуальное направление | B16: "Юным умникам и умницам" | C16: 1 | D16: 33 | E16: 1 | F16: 34 | G16: 1 | H16: 34 | I16: 1 | J16: 34 | K16: 4 | L16: 135
B17: "Функциональная грамотность" | C17: 1 | D17: 33 | E17: 1 | F17: 34 | G17: 1 | H17: 34 | I17: 1 | J17: 34 | K17: 4 | L17: 135
A18: Общекультурное направление | B18: "Школа развития речи" | C18: 1 | D18: 33 | E18: 1 | F18: 34 | G18: 1 | H18: 34 | I18: 1 | J18: 34 | K18: 4 | L18: 135
B19: "Занимательный английский" | C19: 1 | D19: 33 | E19: 1 | F19: 34 | G19: 1 | H19: 34 | I19: 1 | J19: 34 | K19: 4 | L19: 135
A20: Инжененрное направление | B20: ""Азбука Робототехники" | C20: 1 | D20: 33 | E20: 1 | F20: 34 | G20: 1 | H20: 34 | I20: 1 | J20: 34 | K20: 4 | L20: 135
B21: "Цифровая лаборатория Наураша в стране Наурандии" | C21: 1 | D21: 33 | E21: 1 | F21: 34 | G21: 1 | H21: 34 | I21: 1 | J21: 34 | K21: 4 | L21: 135
B22: "Программирование на языке Scratch" | C22: 1 | D22: =C22*33 -> 33 | E22: 1 | F22: =E22*34 -> 34 | G22: 1 | H22: =G22*34 -> 34 | I22: 1 | J22: =PRODUCT(I22*34) -> 34 | K22: =C22+E22+G22+I22 -> 4 | L22: =D22+F22+H22+J22 -> 135
B23: "Эко-конструирование" | C23: 1 | D23: 33 | E23: 1 | F23: 34 | G23: 1 | H23: 34 | I23: 1 | J23: 34 | K23: 4 | L23: 135
B24: "Учимся решать комбинаторные задачи" | C24: 1 | D24: 33 | E24: 1 | F24: 34 | G24: 1 | H24: 34 | I24: 1 | J24: 34 | K24: 4 | L24: 135
B25: "Черчение юных" | C25: 1 | D25: 33 | E25: 1 | F25: 34 | G25: 1 | H25: 34 | I25: 1 | J25: 34 | K25: 4 | L25: 135
B26: "Математика и конструирование" | C26: 1 | D26: 33 | E26: 1 | F26: 34 | G26: 1 | H26: 34 | I26: 1 | J26: 34 | K26: 4 | L26: 135
B27: "Занимательная инженерия" | C27: 1 | D27: 33 | E27: 1 | F27: 34 | G27: 1 | H27: 34 | I27: 1 | J27: 34 | K27: 4 | L27: 135
A28: Социально-гуманитарное направление | B28: "Орлята России" | C28: 1 | D28: 33 | E28: 1 | F28: 34 | G28: 1 | H28: 34 | I28: 1 | J28: 34 | K28: 4 | L28: 135
A29: Итого | C29: =SUM(C13:C28) -> 16 | D29: 528 | E29: 16 | F29: 544 | G29: 16 | H29: 544 | I29: 16 | J29: 544 | K29: 64 | L29: 2160

Sheet 1 классы
A2: РАЗРАБОТАНО И ПРИНЯТО | T2: УТВЕРЖДЕНО
A3: Решением педагогического совета | T3: Приказом по МОУ «Средняя школа №55»
A4: МОУ «Средняя школа №55» | T4: «___» _________________
A5: Протокол №__ от _____ | T5: Директор школы Ермоленко Р.Е.
A6: 2025/2026 учебный год
A8: Направления внеурочной деятельности | B8: Учебные предметы, курсы | C8: Классы/ количество часов в неделю
C9: 5-дневная неделя | S9: ИТОГО:
C10: 1а | E10: 1б | G10: 1в | I10: 1г | K10: 1д | M10: 1е | O10: 1ж | Q10: 1з | S10: всего за неделю | T10: 33 недели
C11: Неделя | D11: Год | E11: Неделя | F11: Год | G11: Неделя | H11: Год | I11: Неделя | J11: Год | K11: Неделя | L11: Год | M11: Неделя | N11: Год | O11: Неделя | P11: Год | Q11: Неделя | R11: Год
A12: Духовно-нравственное направление | B12: "Край, в котором я живу" | C12: 1 | D12: =C12*33 -> 33 | E12: 1 | F12: =E12*33 -> 33 | G12: 1 | H12: =G12*33 -> 33 | I12: 1 | J12: =I12*33 -> 33 | K12: 1 | L12: =K12*33 -> 33 | M12: 1 | N12: =M12*33 -> 33 | O12: 1 | P12: =O12*33 -> 33 | Q12: 1 | R12: =Q12*33 -> 33 | S12: =SUM(C12,E12,G12,I12,K12,M12,O12,Q12) -> 8 | T12: =SUM(D12,F12,H12,J12,L12,N12,P12,R12) -> 264
B13: "Разговоры о важном" | C13: 1 | D13: =C13*33 -> 33 | E13: 1 | F13: =E13*33 -> 33 | G13: 1 | H13: =G13*33 -> 33 | I13: 1 | J13: =I13*33 -> 33 | K13: 1 | L13: =K13*33 -> 33 | M13: 1 | N13: =M13*33 -> 33 | O13: 1 | P13: =O13*33 -> 33 | Q13: 1 | R13: 33 | S13: =SUM(C13,E13,G13,I13,K13,M13,O13,Q13) -> 8 | T13: =SUM(D13,F13,H13,J13,L13,N13,P13,R13) -> 264
A14: Спортивно- оздоровительное направление | B14: "Спортивный час" | C14: 1 | D14: =C14*33 -> 33 | E14: 1 | F14: =E14*33 -> 33 | G14: 1 | H14: =G14*33 -> 33 | I14: 1 | J14: =I14*33 -> 33 | K14: 1 | L14: =K14*33 -> 33 | M14: 1 | N14: =M14*33 -> 33 | O14: 1 | P14: =O14*33 -> 33 | Q14: 1 | R14: 33 | S14: 8 | T14: 264
B15: "Разговор о правильном питании" | C15: 1 | D15: 33 | E15: 1 | F15: =E15*33 -> 33 | G15: 1 | H15: =G15*33 -> 33 | I15: 1 | J15: =I15*33 -> 33 | K15: 1 | L15: =K15*33 -> 33 | M15: 1 | N15: =M15*33 -> 33 | O15: 1 | P15: =O15*33 -> 33 | Q15: 1 | R15: 33 | S15: 8 | T15: 264
A16: Общеинтеллектуальное направление | B16: "Юным умникам и умницам" | I16: 1 | J16: =I16*33 -> 33 | K16: 1 | L16: =K16*33 -> 33 | M16: 1 | N16: =M16*33 -> 33 | O16: 1 | P16: =O16*33 -> 33 | Q16: 1 | R16: 33 | S16: 5 | T16: 165
B17: "Функциональная грамотность" | C17: 1 | D17: 33 | E17: 1 | F17: =E17*33 -> 33 | G17: 1 | H17: =G17*33 -> 33 | I17: 1 | J17: =I17*33 -> 33 | K17: 1 | L17: =K17*33 -> 33 | M17: 1 | N17: =M17*33 -> 33 | O17: 1 | P17: =O17*33 -> 33 | Q17: 1 | R17: 33 | S17: 8 | T17: 264
A18: Общекультурное направление | B18: "Школа развития речи" | C18: 1 | D18: =C18*33 -> 33 | E18: 1 | F18: =E18*33 -> 33 | G18: 1 | H18: =G18*33 -> 33 | I18: 1 | J18: =I18*33 -> 33 | K18: 1 | L18: =K18*33 -> 33 | M18: 1 | N18: =M18*33 -> 33 | O18: 1 | P18: =O18*33 -> 33 | Q18: 1 | R18: 33 | S18: 8 | T18: 264
A19: Инжененрное направление | B19: "Учимся решать комбинаторные задачи" | C19: 1 | D19: 33 | E19: 1 | F19: =E19*33 -> 33 | G19: 1 | H19: =G19*33 -> 33 | L19: =K19*33 -> 0 | M19: 1 | N19: =M19*33 -> 33 | Q19: 1 | R19: 33 | S19: 5 | T19: 165
B20: "ЭКО-конструирование" | C20: 1 | D20: =C20*33 -> 33 | E20: 1 | F20: 33 | G20: 1 | H20: 33 | I20: 1 | J20: =I20*33 -> 33 | K20: 1 | L20: 33 | O20: 1 | P20: =O20*33 -> 33 | Q20: 1 | R20: =Q20*33 -> 33 | S20: =SUM(C20,E20,G20,I20,K20,M20,O20,Q20) -> 7 | T20: =SUM(D20,F20,H20,J20,L20,N20,P20,R20) -> 231
B21: "Математика и конструирование" | C21: 1 | D21: =C21*33 -> 33 | E21: 1 | F21: 33 | G21: 1 | H21: 33 | K21: 1 | L21: 33 | M21: 1 | N21: 33 | O21: 1 | P21: 33 | S21: 6 | T21: 198
B22: "Черчекние юных" | I22: 1 | J22: =I22*33 -> 33 | S22: 1 | T22: 33
A23: Социально-гуманитарное направление | B23: "Орлята России" | C23: 1 | D23: 33 | E23: 1 | F23: =E23*33 -> 33 | G23: 1 | H23: =G23*33 -> 33 | I23: 1 | J23: =I23*33 -> 33 | K23: 1 | L23: =K23*33 -> 33 | M23: 1 | N23: =M23*33 -> 33 | O23: 1 | P23: =O23*33 -> 33 | Q23: 1 | R23: 33 | S23: 8 | T23: 264
A24: Итого | C24: =SUM(C12:C23) -> 10 | D24: =SUM(D12:D23) -> 330 | E24: =SUM(E12:E23) -> 10 | F24: 330 | G24: 10 | H24: 330 | I24: 10 | J24: 330 | K24: 10 | L24: 330 | M24: 10 | N24: 330 | O24: 10 | P24: 330 | Q24: 10 | R24: 330 | S24: =C24+E24+G24+Q24+I24+K24+M24+O24 -> 80 | T24: =D24+F24+H24+R24+J24+L24+N24+P24 -> 2640

Sheet 2 классы
A2: РАЗРАБОТАНО И ПРИНЯТО | R2: УТВЕРЖДЕНО
A3: Решением педагогического совета | R3: Приказом по МОУ «Средняя школа №55»
A4: МОУ «Средняя школа №55» | R4: «___» _________________
A5: Протокол №__ от _____ | R5: Директор школы Ермоленко Р.Е.
A6: 2025/2026 учебный год
A8: Направления внеурочной деятельности | B8: Учебные предметы, курсы | C8: Классы/ количество часов в неделю
C9: 5-дневная неделя | Q9: ИТОГО:
C10: 2а | E10: 2б | G10: 2в | I10: 2г | K10: 2д | M10: 2е | O10: 2ж | Q10: всего за неделю | R10: 34 недели
A11: 1.Обязательная часть | C11: Неделя | D11: Год | E11: Неделя | F11: Год | G11: Неделя | H11: Год | I11: Неделя | J11: Год | K11: Неделя | L11: Год | M11: Неделя | N11: Год | O11: Неделя | P11: Год
A12: Духовно-нравственное направление | B12: "Край, в котором я живу" | C12: 1 | D12: =C12*34 -> 34 | E12: 1 | F12: =E12*34 -> 34 | G12: 1 | H12: =G12*34 -> 34 | I12: 1 | J12: =I12*34 -> 34 | K12: 1 | L12: =K12*34 -> 34 | M12: 1 | N12: =M12*34 -> 34 | O12: 1 | P12: =O12*34 -> 34 | Q12: =C12+E12+G12+O12+I12+K12+M12 -> 7 | R12: =D12+F12+H12+P12+J12+L12+N12 -> 238
B13: "Разговоры о важном" | C13: 1 | D13: =C13*34 -> 34 | E13: 1 | F13: =E13*34 -> 34 | G13: 1 | H13: =G13*34 -> 34 | I13: 1 | J13: =I13*34 -> 34 | K13: 1 | L13: =K13*34 -> 34 | M13: 1 | N13: =M13*34 -> 34 | O13: 1 | P13: 34 | Q13: =C13+E13+G13+O13+I13+K13+M13 -> 7 | R13: =D13+F13+H13+P13+J13+L13+N13 -> 238
A14: Спортивно- оздоровительное направление | B14: "Спортивный час" | C14: 1 | D14: =C14*34 -> 34 | E14: 1 | F14: =E14*34 -> 34 | G14: 1 | H14: =G14*34 -> 34 | I14: 1 | J14: =I14*34 -> 34 | K14: 1 | L14: =K14*34 -> 34 | M14: 1 | N14: =M14*34 -> 34 | O14: 1 | P14: 34 | Q14: 7 | R14: 238
B15: "Разговор о правильном питании" | C15: 1 | D15: =C15*34 -> 34 | E15: 1 | F15: =E15*34 -> 34 | G15: 1 | H15: =G15*34 -> 34 | I15: 1 | J15: =I15*34 -> 34 | K15: 1 | L15: =K15*34 -> 34 | M15: 1 | N15: =M15*34 -> 34 | O15: 1 | P15: 34 | Q15: 7 | R15: 238
A16: Общеинтеллектуальное направление | B16: "Юным умникам и умницам" | C16: 1 | D16: =C16*34 -> 34 | E16: 1 | F16: =E16*34 -> 34 | G16: 1 | H16: =G16*34 -> 34 | I16: 1 | J16: =I16*34 -> 34 | K16: 1 | L16: =K16*34 -> 34 | M16: 1 | N16: =M16*34 -> 34 | O16: 1 | P16: 34 | Q16: 7 | R16: 238
B17: "Функциональная грамотность" | C17: 1 | D17: =C17*34 -> 34 | E17: 1 | F17: =E17*34 -> 34 | G17: 1 | H17: =G17*34 -> 34 | I17: 1 | J17: =I17*34 -> 34 | K17: 1 | L17: =K17*34 -> 34 | M17: 1 | N17: =M17*34 -> 34 | O17: 1 | P17: 34 | Q17: 7 | R17: 238
A18: Общекультурное направление | B18: "Школа развития речи" | C18: 1 | D18: =C18*34 -> 34 | E18: 1 | F18: =E18*34 -> 34 | G18: 1 | H18: =G18*34 -> 34 | I18: 1 | J18: =I18*34 -> 34 | K18: 1 | L18: =K18*34 -> 34 | M18: 1 | N18: =M18*34 -> 34 | O18: 1 | P18: 34 | Q18: 7 | R18: 238
A19: Инжененрное направление | B19: "Математика и конструирование" | E19: 1 | F19: =E19*34 -> 34 | I19: 1 | J19: =I19*34 -> 34 | K19: 1 | L19: =K19*34 -> 34 | M19: 1 | N19: =M19*34 -> 34 | P19: 0 | Q19: 4 | R19: 136
B20: "Черчение юных" | C20: 1 | D20: =C20*34 -> 34 | E20: 1 | F20: =E20*34 -> 34 | G20: 1 | H20: =G20*34 -> 34 | I20: 1 | J20: =I20*34 -> 34 | K20: 1 | L20: =K20*34 -> 34 | M20: 1 | N20: =M20*34 -> 34 | O20: 1 | P20: 34 | Q20: 7 | R20: 238
B21: "Азбука Робототехники" | O21: 1 | P21: =O21*34 -> 34 | Q21: =C21+E21+G21+O21+I21+K21+M21 -> 1 | R21: =D21+F21+H21+P21+J21+L21+N21 -> 34
B22: "Эко-конструирование" | C22: 1 | D22: =C22*34 -> 34 | G22: 1 | H22: =G22*34 -> 34 | Q22: 2 | R22: 68
A23: Социально-гуманитарное направление | B23: "Орлята России" | C23: 1 | D23: =C23*34 -> 34 | E23: 1 | F23: =E23*34 -> 34 | G23: 1 | H23: =G23*34 -> 34 | I23: 1 | J23: =I23*34 -> 34 | K23: 1 | L23: =K23*34 -> 34 | M23: 1 | N23: =M23*34 -> 34 | O23: 1 | P23: 34 | Q23: 7 | R23: 238
A24: Итого | C24: =SUM(C12:C23) -> 10 | D24: 340 | E24: 10 | F24: 340 | G24: 10 | H24: 340 | I24: 10 | J24: 340 | K24: 10 | L24: 340 | M24: 10 | N24: 340 | O24: 10 | P24: 340 | Q24: 70 | R24: =D24+F24+H24+P24+J24+L24+N24 -> 2380

Sheet 3 классы
A2: РАЗРАБОТАНО И ПРИНЯТО | T2: УТВЕРЖДЕНО
A3: Решением педагогического совета | T3: Приказом по МОУ «Средняя школа №55»
A4: МОУ «Средняя школа №55» | T4: «___» _________________
A5: Протокол №__ от _____ | T5: Директор школы Ермоленко Р.Е.
A6: 2025/2026 учебный год
A8: Направления внеурочной деятельности | B8: Учебные предметы, курсы | C8: Классы/ количество часов в неделю
C9: 5-дневная неделя | S9: ИТОГО:
C10: 3а | E10: 3б | G10: 3в | I10: 3г | K10: 3д | M10: 3е | O10: 3ж | Q10: 3з | S10: всего за неделю | T10: 34 недели
C11: Неделя | D11: Год | E11: Неделя | F11: Год | G11: Неделя | H11: Год | I11: Неделя | J11: Год | K11: Неделя | L11: Год | M11: Неделя | N11: Год | O11: Неделя | P11: Год | Q11: Неделя | R11: Год
A12: Духовно-нравственное направление | B12: "Край, в котором я живу" | C12: 1 | D12: =C12*34 -> 34 | E12: 1 | F12: =E12*34 -> 34 | G12: 1 | H12: =G12*34 -> 34 | I12: 1 | J12: =I12*34 -> 34 | K12: 1 | L12: =K12*34 -> 34 | M12: 1 | N12: =M12*34 -> 34 | O12: 1 | P12: =O12*34 -> 34 | Q12: 1 | R12: =Q12*34 -> 34 | S12: =SUM(C12,E12,G12,I12,K12,M12,O12,Q12) -> 8 | T12: =SUM(D12,F12,H12,J12,L12,N12,P12,R12) -> 272
B13: "Разговоры о важном" | C13: 1 | D13: =C13*34 -> 34 | E13: 1 | F13: =E13*34 -> 34 | G13: 1 | H13: =G13*34 -> 34 | I13: 1 | J13: =I13*34 -> 34 | K13: 1 | L13: =K13*34 -> 34 | M13: 1 | N13: =M13*34 -> 34 | O13: 1 | P13: =O13*34 -> 34 | Q13: 1 | R13: 34 | S13: =SUM(C13,E13,G13,I13,K13,M13,O13,Q13) -> 8 | T13: 272
A14: Спортивно- оздоровительное направление | B14: "Разговор о правильном питании" | C14: 1 | D14: =C14*34 -> 34 | E14: 1 | F14: =E14*34 -> 34 | G14: 1 | H14: =G14*34 -> 34 | I14: 1 | J14: =I14*34 -> 34 | K14: 1 | L14: =K14*34 -> 34 | M14: 1 | N14: =M14*34 -> 34 | O14: 1 | P14: =O14*34 -> 34 | Q14: 1 | R14: 34 | S14: 8 | T14: 272
A15: Общеинтеллектуальное направление | B15: "Юным умникам и умницам" | C15: 1 | D15: =C15*34 -> 34 | E15: 1 | F15: =E15*34 -> 34 | G15: 1 | H15: =G15*34 -> 34 | I15: 1 | J15: =I15*34 -> 34 | K15: 1 | L15: =K15*34 -> 34 | M15: 1 | N15: =M15*34 -> 34 | O15: 1 | P15: =O15*34 -> 34 | Q15: 1 | R15: 34 | S15: 8 | T15: 272
B16: "Функциональная грамотность" | C16: 1 | D16: =C16*34 -> 34 | E16: 1 | F16: =E16*34 -> 34 | G16: 1 | H16: =G16*34 -> 34 | I16: 1 | J16: =I16*34 -> 34 | K16: 1 | L16: =K16*34 -> 34 | M16: 1 | N16: =M16*34 -> 34 | O16: 1 | P16: =O16*34 -> 34 | Q16: 1 | R16: 34 | S16: 8 | T16: 272
A17: Общекультурное направление | B17: "Школа развития речи" | C17: 1 | D17: =C17*34 -> 34 | E17: 1 | F17: =E17*34 -> 34 | G17: 1 | H17: =G17*34 -> 34 | I17: 1 | J17: =I17*34 -> 34 | K17: 1 | L17: =K17*34 -> 34 | M17: 1 | N17: =M17*34 -> 34 | O17: 1 | P17: =O17*34 -> 34 | Q17: 1 | R17: 34 | S17: 8 | T17: 272
A18: Инжененрное направление | B18: "Азбука Робототехники" | C18: 1 | D18: =C18*34 -> 34 | E18: 1 | F18: =E18*34 -> 34 | G18: 1 | H18: =G18*34 -> 34 | I18: 1 | J18: =I18*34 -> 34 | K18: 1 | L18: =K18*34 -> 34 | M18: 1 | N18: =M18*34 -> 34 | O18: 1 | P18: =O18*34 -> 34 | Q18: 1 | R18: 34 | S18: 8 | T18: 272
B19: "Черчение юных" | C19: 1 | D19: 34 | E19: 1 | F19: 34 | G19: 1 | H19: 34 | I19: 1 | J19: 34 | K19: 1 | L19: 34 | M19: 1 | N19: 34 | O19: 1 | P19: 34 | Q19: 1 | R19: =Q19*34 -> 34 | S19: =SUM(C19,E19,G19,I19,K19,M19,O19,Q19) -> 8 | T19: =SUM(D19,F19,H19,J19,L19,N19,P19,R19) -> 272
B20: "Математика и конструирование! | C20: 1 | D20: =C20*34 -> 34 | E20: 1 | F20: =E20*34 -> 34 | G20: 1 | H20: =G20*34 -> 34 | I20: 1 | J20: =I20*34 -> 34 | K20: 1 | L20: =K20*34 -> 34 | M20: 1 | N20: =M20*34 -> 34 | O20: 1 | P20: =O20*34 -> 34 | Q20: 1 | R20: 34 | S20: 8 | T20: 272
A21: Социально-гуманитарное направление | B21: "Орлята России" | C21: 1 | D21: =C21*34 -> 34 | E21: 1 | F21: =E21*34 -> 34 | G21: 1 | H21: =G21*34 -> 34 | I21: 1 | J21: =I21*34 -> 34 | K21: 1 | L21: =K21*34 -> 34 | M21: 1 | N21: =M21*34 -> 34 | O21: 1 | P21: =O21*34 -> 34 | Q21: 1 | R21: 34 | S21: 8 | T21: 272
A22: Итого | C22: =SUM(C12:C21) -> 10 | D22: 340 | E22: 10 | F22: 340 | G22: 10 | H22: 340 | I22: 10 | J22: 340 | K22: 10 | L22: 340 | M22: 10 | N22: 340 | O22: 10 | P22: 340 | Q22: 10 | R22: 340 | S22: =C22+E22+G22+Q22+I22+K22+M22+O22 -> 80 | T22: =D22+F22+H22+R22+J22+L22+N22+P22 -> 2720

Sheet 4 классы
A2: РАЗРАБОТАНО И ПРИНЯТО | V2: УТВЕРЖДЕНО
A3: Решением педагогического совета | V3: Приказом по МОУ «Средняя школа №55»
A4: МОУ «Средняя школа №55» | V4: «___» _________________
A5: Протокол №__ от _____ | V5: Директор школы Ермоленко Р.Е.
A6: 2025/2026 учебный год
A8: Направления внеурочной деятельности | B8: Учебные предметы, курсы | C8: Классы/ количество часов в неделю
C9: 5-дневная неделя | U9: ИТОГО:
C10: 4а | E10: 4б | G10: 4в | I10: 4г | K10: 4д | M10: 4е | O10: 4ж | Q10: 4з | S10: 4и | U10: всего за неделю | V10: 34 недели
C11: Неделя | D11: Год | E11: Неделя | F11: Год | G11: Неделя | H11: Год | I11: Неделя | J11: Год | K11: Неделя | L11: Год | M11: Неделя | N11: Год | O11: Неделя | P11: Год | Q11: Неделя | R11: Год | S11: Неделя | T11: Год
A12: Духовно-нравственное направление | B12: "Край, в котором я живу" | C12: 1 | D12: =C12*34 -> 34 | E12: 1 | F12: =E12*34 -> 34 | G12: 1 | H12: =G12*34 -> 34 | I12: 1 | J12: =I12*34 -> 34 | K12: 1 | L12: =K12*34 -> 34 | M12: 1 | N12: =M12*34 -> 34 | O12: 1 | P12: =O12*34 -> 34 | Q12: 1 | R12: =Q12*34 -> 34 | S12: 1 | T12: 34 | U12: =C12+E12+G12+S12+I12+K12+M12+O12+Q12 -> 9 | V12: =D12+F12+H12+T12+J12+L12+N12+P12+R12 -> 306
B13: "Разговоры о важном" | C13: 1 | D13: =C13*34 -> 34 | E13: 1 | F13: 34 | G13: 1 | H13: 34 | I13: 1 | J13: 34 | K13: 1 | L13: 34 | M13: 1 | N13: 34 | O13: 1 | P13: 34 | Q13: 1 | R13: 34 | S13: 1 | T13: 34 | U13: 9 | V13: 306
A14: Спортивно- оздоровительное направление | B14: "Разговор о правильном питании" | C14: 1 | D14: 34 | E14: 1 | F14: 34 | G14: 1 | H14: 34 | I14: 1 | J14: 34 | K14: 1 | L14: 34 | M14: 1 | N14: 34 | O14: 1 | P14: 34 | Q14: 1 | R14: 34 | S14: 1 | T14: 34 | U14: 9 | V14: 306
A15: Общеинтеллектуальное направление | B15: "Юным умникам и умницам" | C15: 1 | D15: 34 | E15: 1 | F15: 34 | G15: 1 | H15: 34 | I15: 1 | J15: 34 | K15: 1 | L15: 34 | M15: 1 | N15: 34 | O15: 1 | P15: 34 | Q15: 1 | R15: 34 | S15: 1 | T15: 34 | U15: 9 | V15: 306
B16: "Функциональная грамотность" | C16: 1 | D16: 34 | E16: 1 | F16: 34 | G16: 1 | H16: 34 | I16: 1 | J16: 34 | K16: 1 | L16: 34 | M16: 1 | N16: 34 | O16: 1 | P16: 34 | Q16: 1 | R16: 34 | S16: 1 | T16: 34 | U16: 9 | V16: 306
A17: Общекультурное направление | B17: "Школа развития речи" | C17: 1 | D17: 34 | E17: 1 | F17: 34 | G17: 1 | H17: 34 | I17: 1 | J17: 34 | K17: 1 | L17: 34 | M17: 1 | N17: 34 | O17: 1 | P17: 34 | Q17: 1 | R17: 34 | S17: 1 | T17: 34 | U17: 9 | V17: 306
A18: Инжененрное направление | B18: "Программирование на языке Scratch" | G18: 1 | H18: 34 | Q18: 1 | R18: 34 | U18: 2 | V18: 68
B19: "Учимся решать комбинаторные задачи" | C19: 1 | D19: =C19*34 -> 34 | E19: 1 | F19: =E19*34 -> 34 | G19: 1 | H19: =G19*34 -> 34 | I19: 1 | J19: =I19*34 -> 34 | K19: 1 | L19: =K19*34 -> 34 | M19: 1 | N19: =M19*34 -> 34 | O19: 1 | P19: =O19*34 -> 34 | Q19: 1 | R19: =Q19*34 -> 34 | S19: 1 | T19: =S19*34 -> 34 | U19: =C19+E19+G19+S19+I19+K19+M19+O19+Q19 -> 9 | V19: =D19+F19+H19+T19+J19+L19+N19+P19+R19 -> 306
B20: "Азбука Робототехники" | C20: 1 | D20: =C20*34 -> 34 | E20: 1 | F20: =E20*34 -> 34 | G20: 1 | H20: =G20*34 -> 34 | I20: 1 | J20: =I20*34 -> 34 | K20: 1 | L20: =K20*34 -> 34 | M20: 1 | N20: =M20*34 -> 34 | O20: 1 | P20: =O20*34 -> 34 | Q20: 1 | R20: =Q20*34 -> 34 | S20: 1 | T20: =S20*34 -> 34 | U20: =C20+E20+G20+S20+I20+K20+M20+O20+Q20 -> 9 | V20: =D20+F20+H20+T20+J20+L20+N20+P20+R20 -> 306
B21: "Черчение юных" | C21: 1 | D21: 34 | E21: 1 | F21: 34 | I21: 1 | J21: 34 | K21: 1 | L21: 34 | M21: 1 | N21: 34 | O21: 1 | P21: 34 | S21: 1 | T21: 34 | U21: 7 | V21: 238
A22: Социально-гуманитарное направление | B22: "Орлята России" | C22: 1 | D22: 34 | E22: 1 | F22: 34 | G22: 1 | H22: 34 | I22: 1 | J22: 34 | K22: 1 | L22: 34 | M22: 1 | N22: 34 | O22: 1 | P22: 34 | Q22: 1 | R22: 34 | S22: 1 | T22: 34 | U22: 9 | V22: 306
A23: Итого | C23: =SUM(C12:C22) -> 10 | D23: 340 | E23: 10 | F23: 340 | G23: 10 | H23: 340 | I23: 10 | J23: 340 | K23: 10 | L23: 340 | M23: 10 | N23: 340 | O23: 10 | P23: 340 | Q23: 10 | R23: 340 | S23: 10 | T23: 340 | U23: 90 | V23: 3060
